[Event "*** Titled Tuesday Blitz"]
[Site "Chess.com"]
[Date "2020.01.07"]
[Round "2"]
[White "DrRiebert"]
[Black "FearNoEvil12"]
[Result "1-0"]
[WhiteElo "2378"]
[BlackElo "2027"]
[TimeControl "180+2"]
[EndTime "13:26:34 PST"]
[Termination "DrRiebert won by resignation"]

1. e4 {[%clk 0:01:39.4]} 1... a6 {[%clk 0:03:00.4]} 2. d4 {[%clk 0:01:39.4]}
2... b5 {[%clk 0:03:01.8]} 3. Bd3 {[%clk 0:01:40.6]} 3... Bb7 {[%clk 0:03:03.2]}
4. Qe2 {[%clk 0:01:42.5]} 4... e6 {[%clk 0:03:03.7]} 5. c3 {[%clk 0:01:44]} 5...
Nf6 {[%clk 0:03:04.8]} 6. Nd2 {[%clk 0:01:45.4]} 6... d6 {[%clk 0:03:06.2]} 7.
f4 {[%clk 0:01:46.4]} 7... Nbd7 {[%clk 0:03:06.1]} 8. g4 {[%clk 0:01:47.7]} 8...
c5 {[%clk 0:03:02.4]} 9. g5 {[%clk 0:01:47.2]} 9... Ng8 {[%clk 0:03:02.1]} 10.
Ngf3 {[%clk 0:01:47.9]} 10... Qb6 {[%clk 0:03:01.1]} 11. a4 {[%clk 0:01:43.5]}
11... c4 {[%clk 0:02:57.4]} 12. Bc2 {[%clk 0:01:41.9]} 12... Ne7 {[%clk
0:02:59.3]} 13. Nf1 {[%clk 0:01:34.6]} 13... h6 {[%clk 0:02:58.6]} 14. Ng3
{[%clk 0:01:34.4]} 14... hxg5 {[%clk 0:02:57.9]} 15. Nxg5 {[%clk 0:01:35.4]}
15... Nf6 {[%clk 0:02:52.8]} 16. Be3 {[%clk 0:01:30.5]} 16... Qc7 {[%clk
0:02:51.3]} 17. O-O {[%clk 0:01:07.2]} 17... Qd7 {[%clk 0:02:48.1]} 18. f5
{[%clk 0:00:40.3]} 18... e5 {[%clk 0:02:43.3]} 19. d5 {[%clk 0:00:37]} 19...
Neg8 {[%clk 0:02:38.9]} 20. Ra3 {[%clk 0:00:34.6]} 20... Nh6 {[%clk 0:02:37.9]}
21. Rfa1 {[%clk 0:00:34.8]} 21... Rb8 {[%clk 0:02:24.2]} 22. axb5 {[%clk
0:00:30.7]} 22... axb5 {[%clk 0:02:23.2]} 23. Ba7 {[%clk 0:00:28.1]} 23... Ra8
{[%clk 0:02:20.5]} 24. Bb6 {[%clk 0:00:22.2]} 24... Rxa3 {[%clk 0:02:19.5]} 25.
Rxa3 {[%clk 0:00:24.1]} 25... Nhg4 {[%clk 0:02:19.5]} 26. h3 {[%clk 0:00:23]}
26... Nh6 {[%clk 0:02:15]} 27. Qd1 {[%clk 0:00:22]} 27... Be7 {[%clk 0:02:13.8]}
28. Nf3 {[%clk 0:00:18.8]} 28... O-O {[%clk 0:02:13.1]} 29. Ra7 {[%clk
0:00:18.2]} 29... g6 {[%clk 0:02:09.8]} 30. Qd2 {[%clk 0:00:17]} 30... Kg7
{[%clk 0:02:09]} 31. Be3 {[%clk 0:00:11.5]} 31... Nhg8 {[%clk 0:02:07.7]} 32.
Bg5 {[%clk 0:00:10.7]} 32... Nh7 {[%clk 0:02:04.9]} 33. Bxe7 {[%clk 0:00:11.4]}
33... Qxe7 {[%clk 0:02:06.3]} 34. Qe3 {[%clk 0:00:12]} 34... Qc7 {[%clk
0:01:51.6]} 35. Kh2 {[%clk 0:00:11.9]} 35... Qb8 {[%clk 0:01:50.9]} 36. Qb6
{[%clk 0:00:12.1]} 36... Ba8 {[%clk 0:01:48.7]} 37. Qa5 {[%clk 0:00:13.3]} 37...
Nh6 {[%clk 0:01:42.4]} 38. Nh4 {[%clk 0:00:12]} 38... g5 {[%clk 0:01:34.1]} 39.
Nf3 {[%clk 0:00:12.5]} 39... g4 {[%clk 0:01:34]} 40. hxg4 {[%clk 0:00:13.5]}
40... Nxg4+ {[%clk 0:01:34.9]} 41. Kg1 {[%clk 0:00:15.4]} 41... Nhf6 {[%clk
0:01:29.6]} 42. Ng5 {[%clk 0:00:14.9]} 42... Kg8 {[%clk 0:01:17.5]} 43. Nxf7
{[%clk 0:00:14.7]} 43... Qe8 {[%clk 0:01:06.9]} 44. Nh6+ {[%clk 0:00:15]} 44...
Nxh6 {[%clk 0:01:04.9]} 45. Bd1 {[%clk 0:00:16.2]} 45... Nf7 {[%clk 0:00:43.1]}
46. Qc7 {[%clk 0:00:16.7]} 46... Bxd5 {[%clk 0:00:40.9]} 47. exd5 {[%clk
0:00:17.3]} 47... Nxd5 {[%clk 0:00:41.7]} 48. Qb7 {[%clk 0:00:18.5]} 48... Nf4
{[%clk 0:00:40]} 49. Bh5 {[%clk 0:00:19]} 49... Nxh5 {[%clk 0:00:25.7]} 50. Nxh5
{[%clk 0:00:20.9]} 50... Qd8 {[%clk 0:00:26.5]} 51. f6 {[%clk 0:00:17]} 51...
Qc8 {[%clk 0:00:23]} 52. Qg2+ {[%clk 0:00:17.4]} 1-0

[Event "*** Titled Tuesday Blitz"]
[Site "Chess.com"]
[Date "2020.01.07"]
[Round "2"]
[White "vanea_03"]
[Black "ural58"]
[Result "1-0"]
[WhiteElo "2696"]
[BlackElo "2364"]
[TimeControl "180+2"]
[EndTime "13:26:36 PST"]
[Termination "vanea_03 won by resignation"]

1. d4 {[%clk 0:03:01.9]} 1... d5 {[%clk 0:03:00]} 2. c4 {[%clk 0:02:58.8]} 2...
e5 {[%clk 0:03:00.1]} 3. dxe5 {[%clk 0:02:58]} 3... d4 {[%clk 0:03:00.5]} 4. Nf3
{[%clk 0:02:59.5]} 4... Nc6 {[%clk 0:03:01.5]} 5. a3 {[%clk 0:03:00.7]} 5... g6
{[%clk 0:03:02]} 6. b4 {[%clk 0:02:54]} 6... Bg7 {[%clk 0:03:02.9]} 7. Bb2
{[%clk 0:02:52.9]} 7... Nh6 {[%clk 0:03:03.9]} 8. Nbd2 {[%clk 0:02:48.1]} 8...
O-O {[%clk 0:02:57.6]} 9. g3 {[%clk 0:02:37.3]} 9... Ng4 {[%clk 0:02:55.4]} 10.
Bg2 {[%clk 0:02:36]} 10... d3 {[%clk 0:02:43.5]} 11. O-O {[%clk 0:02:22.4]}
11... Ngxe5 {[%clk 0:02:39.2]} 12. Nxe5 {[%clk 0:02:15.7]} 12... Nxe5 {[%clk
0:02:39.4]} 13. exd3 {[%clk 0:02:02.2]} 13... Bg4 {[%clk 0:02:24.3]} 14. Qb3
{[%clk 0:01:55.7]} 14... Qxd3 {[%clk 0:01:44.8]} 15. Qxd3 {[%clk 0:01:34.6]}
15... Nxd3 {[%clk 0:01:45.5]} 16. Bxg7 {[%clk 0:01:36.5]} 16... Kxg7 {[%clk
0:01:46.5]} 17. Bxb7 {[%clk 0:01:37.8]} 17... Rad8 {[%clk 0:01:41.8]} 18. Nb3
{[%clk 0:00:59.7]} 18... Be2 {[%clk 0:01:38.3]} 19. Rfb1 {[%clk 0:01:00.7]}
19... Ne5 {[%clk 0:01:08.3]} 20. Re1 {[%clk 0:00:45.2]} 20... Nf3+ {[%clk
0:01:04.1]} 21. Bxf3 {[%clk 0:00:45.3]} 21... Bxf3 {[%clk 0:01:06]} 22. Re3
{[%clk 0:00:41.6]} 22... Bd1 {[%clk 0:01:03.2]} 23. Nc5 {[%clk 0:00:39.8]} 23...
Rd2 {[%clk 0:00:56.5]} 24. Ne4 {[%clk 0:00:35.5]} 24... Rd4 {[%clk 0:00:55]} 25.
c5 {[%clk 0:00:26.9]} 25... Bc2 {[%clk 0:00:43.7]} 26. Nc3 {[%clk 0:00:27.9]}
26... Rfd8 {[%clk 0:00:17.4]} 27. Rae1 {[%clk 0:00:29]} 27... Rd3 {[%clk
0:00:15.4]} 28. Kg2 {[%clk 0:00:26]} 28... Bb3 {[%clk 0:00:14.2]} 29. Rxd3
{[%clk 0:00:21.5]} 29... Rxd3 {[%clk 0:00:14.8]} 30. Re3 {[%clk 0:00:23.4]}
30... Rd2 {[%clk 0:00:15.6]} 31. h4 {[%clk 0:00:23.6]} 31... c6 {[%clk
0:00:14.8]} 32. Kf1 {[%clk 0:00:17.6]} 32... Bc4+ {[%clk 0:00:13.4]} 33. Ke1
{[%clk 0:00:18.1]} 33... Rc2 {[%clk 0:00:14.4]} 34. Ne4 {[%clk 0:00:18.4]} 34...
Bd5 {[%clk 0:00:12.7]} 35. Nd2 {[%clk 0:00:16.5]} 35... Rc1+ {[%clk 0:00:13.4]}
36. Ke2 {[%clk 0:00:17.9]} 36... Ra1 {[%clk 0:00:15.3]} 37. Rc3 {[%clk 0:00:19]}
37... f5 {[%clk 0:00:15.1]} 38. Ke3 {[%clk 0:00:19.8]} 38... Kf6 {[%clk
0:00:15.6]} 39. Nf3 {[%clk 0:00:19.7]} 39... h6 {[%clk 0:00:15.3]} 40. Nd4
{[%clk 0:00:20.1]} 40... g5 {[%clk 0:00:16.2]} 41. hxg5+ {[%clk 0:00:22]} 41...
hxg5 {[%clk 0:00:17.9]} 42. b5 {[%clk 0:00:23.4]} 42... Re1+ {[%clk 0:00:18.8]}
43. Kd2 {[%clk 0:00:24]} 43... Rf1 {[%clk 0:00:18.6]} 44. Ke2 {[%clk 0:00:22.2]}
44... Rb1 {[%clk 0:00:17.8]} 45. bxc6 {[%clk 0:00:23.1]} 45... Rb8 {[%clk
0:00:19.7]} 46. c7 {[%clk 0:00:19.1]} 46... Re8+ {[%clk 0:00:21.6]} 47. Kd2
{[%clk 0:00:19.7]} 47... Rc8 {[%clk 0:00:23.5]} 48. Nb5 {[%clk 0:00:20.8]} 48...
a6 {[%clk 0:00:24.8]} 49. Nd6 {[%clk 0:00:22]} 49... Rxc7 {[%clk 0:00:24]} 50.
Ne8+ {[%clk 0:00:23.6]} 1-0

[Event "*** Titled Tuesday Blitz"]
[Site "Chess.com"]
[Date "2020.01.07"]
[Round "2"]
[White "stoleriu"]
[Black "GMKrikor"]
[Result "0-1"]
[WhiteElo "2574"]
[BlackElo "2879"]
[TimeControl "180+2"]
[EndTime "13:26:37 PST"]
[Termination "GMKrikor won by resignation"]

1. e4 {[%clk 0:03:01.9]} 1... c5 {[%clk 0:03:00.8]} 2. Nc3 {[%clk 0:03:01.7]}
2... e6 {[%clk 0:03:01.7]} 3. Nf3 {[%clk 0:03:02]} 3... a6 {[%clk 0:02:59.8]} 4.
d4 {[%clk 0:02:59.3]} 4... cxd4 {[%clk 0:03:01.7]} 5. Nxd4 {[%clk 0:03:01.2]}
5... b5 {[%clk 0:03:03.2]} 6. Bd3 {[%clk 0:03:02.1]} 6... Bb7 {[%clk 0:03:00.2]}
7. O-O {[%clk 0:02:59.9]} 7... Nc6 {[%clk 0:03:01.6]} 8. Nxc6 {[%clk 0:02:56.5]}
8... Bxc6 {[%clk 0:03:02.7]} 9. Qe2 {[%clk 0:02:56]} 9... Bc5 {[%clk 0:02:59.2]}
10. Be3 {[%clk 0:02:51.2]} 10... Qb6 {[%clk 0:02:57.5]} 11. Bxc5 {[%clk
0:02:47]} 11... Qxc5 {[%clk 0:02:59.4]} 12. Qg4 {[%clk 0:02:48.1]} 12... Nf6
{[%clk 0:02:19.6]} 13. Qxg7 {[%clk 0:02:44.8]} 13... Ke7 {[%clk 0:02:21.1]} 14.
Qg3 {[%clk 0:02:35.6]} 14... Rhg8 {[%clk 0:02:12.4]} 15. Qe3 {[%clk 0:02:32.5]}
15... Qxe3 {[%clk 0:02:10.8]} 16. fxe3 {[%clk 0:02:34.4]} 16... b4 {[%clk
0:02:07.7]} 17. Ne2 {[%clk 0:02:22.8]} 17... Nxe4 {[%clk 0:02:01.7]} 18. Nd4
{[%clk 0:02:14.5]} 18... Bd5 {[%clk 0:01:41]} 19. g3 {[%clk 0:02:10.5]} 19... h5
{[%clk 0:01:25.8]} 20. Rf4 {[%clk 0:02:09.7]} 20... f5 {[%clk 0:01:03.8]} 21.
Rh4 {[%clk 0:02:02.2]} 21... Nf6 {[%clk 0:00:55.9]} 22. Rf1 {[%clk 0:01:54.6]}
22... Rg4 {[%clk 0:00:52.9]} 23. Rf4 {[%clk 0:01:40.6]} 23... Bxa2 {[%clk
0:00:44.7]} 24. b3 {[%clk 0:01:35.2]} 24... a5 {[%clk 0:00:45.9]} 25. Bb5 {[%clk
0:00:33]} 25... Rxf4 {[%clk 0:00:46.8]} 26. Rxf4 {[%clk 0:00:33.5]} 26... Nd5
{[%clk 0:00:48.4]} 27. Rf3 {[%clk 0:00:34.3]} 27... Nc3 {[%clk 0:00:49.8]} 28.
Bd3 {[%clk 0:00:24.9]} 28... a4 {[%clk 0:00:49.5]} 29. bxa4 {[%clk 0:00:26.5]}
29... Bd5 {[%clk 0:00:48.5]} 30. Rf4 {[%clk 0:00:20.8]} 30... Rxa4 {[%clk
0:00:49.6]} 31. Rh4 {[%clk 0:00:22]} 31... Ra1+ {[%clk 0:00:50.9]} 32. Kf2
{[%clk 0:00:23.2]} 32... Ra2 {[%clk 0:00:43]} 33. Ke1 {[%clk 0:00:21.1]} 33...
Ra1+ {[%clk 0:00:39.6]} 34. Kf2 {[%clk 0:00:22.5]} 34... Rd1 {[%clk 0:00:36.8]}
35. Ne2 {[%clk 0:00:14.4]} 35... Ne4+ {[%clk 0:00:24.4]} 36. Bxe4 {[%clk
0:00:15.2]} 36... Bxe4 {[%clk 0:00:25.7]} 37. Nd4 {[%clk 0:00:14.8]} 37... Bxc2
{[%clk 0:00:18.7]} 38. Nxc2 {[%clk 0:00:15.2]} 38... Rd2+ {[%clk 0:00:20.4]} 39.
Kf3 {[%clk 0:00:15]} 39... Rxc2 {[%clk 0:00:21.6]} 40. Rxh5 {[%clk 0:00:08.6]}
40... b3 {[%clk 0:00:22.8]} 41. Rh8 {[%clk 0:00:09.9]} 41... b2 {[%clk
0:00:20.6]} 42. Rb8 {[%clk 0:00:10.7]} 42... Rxh2 {[%clk 0:00:22.1]} 43. Kf4
{[%clk 0:00:11.9]} 43... Kd6 {[%clk 0:00:19.5]} 44. e4 {[%clk 0:00:11.6]} 44...
fxe4 {[%clk 0:00:19.1]} 45. Kxe4 {[%clk 0:00:13.5]} 45... Rg2 {[%clk 0:00:20.4]}
46. Kf3 {[%clk 0:00:14.4]} 46... Rc2 {[%clk 0:00:21.6]} 47. g4 {[%clk
0:00:15.3]} 47... Ke5 {[%clk 0:00:20.9]} 48. Rb5+ {[%clk 0:00:15.3]} 48... d5
{[%clk 0:00:21.9]} 49. Kg3 {[%clk 0:00:15.5]} 49... Ke4 {[%clk 0:00:21.3]} 50.
Kh4 {[%clk 0:00:16]} 50... e5 {[%clk 0:00:22.9]} 51. g5 {[%clk 0:00:16.8]} 51...
Rg2 {[%clk 0:00:23.6]} 52. Rb8 {[%clk 0:00:16.3]} 52... d4 {[%clk 0:00:24.2]}
53. Kh5 {[%clk 0:00:15.3]} 53... d3 {[%clk 0:00:25.6]} 54. g6 {[%clk 0:00:16.6]}
54... d2 {[%clk 0:00:27]} 55. Rxb2 {[%clk 0:00:17.3]} 55... d1=Q+ {[%clk
0:00:28.5]} 0-1

[Event "*** Titled Tuesday Blitz"]
[Site "Chess.com"]
[Date "2020.01.07"]
[Round "2"]
[White "coolthing"]
[Black "Durarbayli"]
[Result "0-1"]
[WhiteElo "2354"]
[BlackElo "2844"]
[TimeControl "180+2"]
[EndTime "13:26:42 PST"]
[Termination "Durarbayli won by resignation"]

1. e4 {[%clk 0:03:01.9]} 1... e6 {[%clk 0:02:56]} 2. d4 {[%clk 0:03:02.9]} 2...
d5 {[%clk 0:02:55.7]} 3. exd5 {[%clk 0:03:04.5]} 3... exd5 {[%clk 0:02:55.3]} 4.
c4 {[%clk 0:03:06.1]} 4... Bb4+ {[%clk 0:02:53.3]} 5. Nc3 {[%clk 0:03:07.1]}
5... Nf6 {[%clk 0:02:50.9]} 6. Bd3 {[%clk 0:03:07.3]} 6... dxc4 {[%clk
0:02:50.3]} 7. Bxc4 {[%clk 0:03:08.4]} 7... O-O {[%clk 0:02:50.9]} 8. Ne2 {[%clk
0:03:09.4]} 8... h6 {[%clk 0:02:45.6]} 9. O-O {[%clk 0:03:09.6]} 9... Nc6 {[%clk
0:02:44.4]} 10. Be3 {[%clk 0:03:07.2]} 10... Bf5 {[%clk 0:02:37.4]} 11. Rc1
{[%clk 0:03:03.6]} 11... a6 {[%clk 0:02:30]} 12. Ng3 {[%clk 0:03:00.5]} 12...
Bg6 {[%clk 0:02:29.5]} 13. Bb3 {[%clk 0:02:54.4]} 13... Re8 {[%clk 0:02:21.3]}
14. a3 {[%clk 0:02:48.2]} 14... Bd6 {[%clk 0:02:21.2]} 15. Qf3 {[%clk
0:02:45.4]} 15... Na5 {[%clk 0:02:09.7]} 16. Ba2 {[%clk 0:02:42.6]} 16... Qd7
{[%clk 0:01:54.6]} 17. Rfd1 {[%clk 0:02:28.8]} 17... Qg4 {[%clk 0:01:54.1]} 18.
Qxg4 {[%clk 0:01:54.6]} 18... Nxg4 {[%clk 0:01:56]} 19. Nd5 {[%clk 0:01:55.1]}
19... Nc6 {[%clk 0:01:52.1]} 20. Nf4 {[%clk 0:01:50.3]} 20... Bh7 {[%clk
0:01:40.4]} 21. Rc3 {[%clk 0:01:43.9]} 21... Rad8 {[%clk 0:01:38.6]} 22. h3
{[%clk 0:01:30.1]} 22... Nxe3 {[%clk 0:01:31]} 23. fxe3 {[%clk 0:01:30.4]} 23...
Bxf4 {[%clk 0:01:17.5]} 24. exf4 {[%clk 0:01:31.2]} 24... Nxd4 {[%clk
0:01:07.3]} 25. Rf1 {[%clk 0:01:07.4]} 25... Nb5 {[%clk 0:01:02.3]} 26. Rc5
{[%clk 0:01:00.6]} 26... Bd3 {[%clk 0:00:58.5]} 27. Rd1 {[%clk 0:00:54.9]} 27...
c6 {[%clk 0:00:53.8]} 28. Kf2 {[%clk 0:00:37.1]} 28... Kf8 {[%clk 0:00:49]} 29.
Rcc1 {[%clk 0:00:32.6]} 29... Bh7 {[%clk 0:00:45.1]} 30. f5 {[%clk 0:00:28.8]}
30... Nd4 {[%clk 0:00:40.4]} 31. Rc5 {[%clk 0:00:13.8]} 31... Bg8 {[%clk
0:00:29.4]} 32. Rc3 {[%clk 0:00:10.3]} 32... Nb5 {[%clk 0:00:27.9]} 33. Rxd8
{[%clk 0:00:10.2]} 33... Rxd8 {[%clk 0:00:29.8]} 34. Re3 {[%clk 0:00:10.4]}
34... Rd2+ {[%clk 0:00:27.4]} 35. Re2 {[%clk 0:00:11.6]} 35... Rxe2+ {[%clk
0:00:24.6]} 36. Kxe2 {[%clk 0:00:13.5]} 36... f6 {[%clk 0:00:25.5]} 37. Bxg8
{[%clk 0:00:12.7]} 37... Kxg8 {[%clk 0:00:27.4]} 38. Kd3 {[%clk 0:00:13.9]}
38... Nd6 {[%clk 0:00:27.3]} 39. Kd4 {[%clk 0:00:13.6]} 39... b6 {[%clk
0:00:28.4]} 40. Ke3 {[%clk 0:00:12]} 40... Nc4+ {[%clk 0:00:27.2]} 41. Kd4
{[%clk 0:00:10.2]} 41... Nxb2 {[%clk 0:00:28.4]} 42. Ne4 {[%clk 0:00:09.1]}
42... a5 {[%clk 0:00:21.6]} 43. Nd6 {[%clk 0:00:08.9]} 43... b5 {[%clk
0:00:21.6]} 44. Kc5 {[%clk 0:00:08.7]} 44... Nd3+ {[%clk 0:00:14.1]} 45. Kxc6
{[%clk 0:00:09.8]} 45... b4 {[%clk 0:00:14.5]} 46. axb4 {[%clk 0:00:09.5]} 46...
axb4 {[%clk 0:00:16.4]} 47. Nc4 {[%clk 0:00:09.5]} 47... b3 {[%clk 0:00:17.9]}
48. Kd5 {[%clk 0:00:08.4]} 48... b2 {[%clk 0:00:18.5]} 49. Nd2 {[%clk
0:00:08.4]} 49... Nf4+ {[%clk 0:00:19.5]} 50. Kd6 {[%clk 0:00:05.4]} 50... Nxg2
{[%clk 0:00:21.4]} 51. Ke7 {[%clk 0:00:05.4]} 51... Ne3 {[%clk 0:00:22.6]} 52.
Ke6 {[%clk 0:00:06.2]} 52... h5 {[%clk 0:00:23.8]} 53. h4 {[%clk 0:00:07.1]}
53... Ng2 {[%clk 0:00:24.7]} 0-1

[Event "*** Titled Tuesday Blitz"]
[Site "Chess.com"]
[Date "2020.01.07"]
[Round "2"]
[White "attack2mateU"]
[Black "gui_borba"]
[Result "1-0"]
[WhiteElo "2674"]
[BlackElo "2304"]
[TimeControl "180+2"]
[EndTime "13:26:52 PST"]
[Termination "attack2mateU won by resignation"]

1. e4 {[%clk 0:03:00.7]} 1... c6 {[%clk 0:02:57.8]} 2. d4 {[%clk 0:02:59.9]}
2... d5 {[%clk 0:02:59.7]} 3. e5 {[%clk 0:03:00.6]} 3... Bf5 {[%clk 0:02:58.9]}
4. Nf3 {[%clk 0:03:01.8]} 4... e6 {[%clk 0:02:58.5]} 5. Be2 {[%clk 0:03:02.6]}
5... Nd7 {[%clk 0:02:58.7]} 6. O-O {[%clk 0:03:02.9]} 6... h6 {[%clk 0:02:59.9]}
7. Nbd2 {[%clk 0:03:03.2]} 7... Ne7 {[%clk 0:03:00.8]} 8. Nb3 {[%clk 0:03:03.9]}
8... Bh7 {[%clk 0:02:56.8]} 9. a4 {[%clk 0:03:03.8]} 9... Ng6 {[%clk 0:02:57.4]}
10. a5 {[%clk 0:03:04.1]} 10... a6 {[%clk 0:02:58.7]} 11. c4 {[%clk 0:03:03.5]}
11... Be7 {[%clk 0:02:58.2]} 12. cxd5 {[%clk 0:03:02.5]} 12... cxd5 {[%clk
0:02:58.8]} 13. Bd3 {[%clk 0:02:48]} 13... Rc8 {[%clk 0:02:48.2]} 14. Bd2 {[%clk
0:02:41.6]} 14... O-O {[%clk 0:02:44]} 15. Qe2 {[%clk 0:02:41.7]} 15... Nh4
{[%clk 0:02:35.8]} 16. Nxh4 {[%clk 0:02:35.7]} 16... Bxd3 {[%clk 0:02:20.4]} 17.
Qxd3 {[%clk 0:02:34.2]} 17... Bxh4 {[%clk 0:02:21.3]} 18. Rfc1 {[%clk
0:02:16.6]} 18... Be7 {[%clk 0:01:31.5]} 19. Rxc8 {[%clk 0:02:16.3]} 19... Qxc8
{[%clk 0:01:33.4]} 20. Rc1 {[%clk 0:02:17.1]} 20... Qa8 {[%clk 0:01:24.7]} 21.
Qc2 {[%clk 0:02:11.6]} 21... Nb8 {[%clk 0:01:24.3]} 22. Nc5 {[%clk 0:01:20.5]}
22... Bxc5 {[%clk 0:00:47.3]} 23. Qxc5 {[%clk 0:01:13.3]} 23... Nc6 {[%clk
0:00:49.2]} 24. Rc3 {[%clk 0:01:04.4]} 24... Qd8 {[%clk 0:00:43.1]} 25. Rg3
{[%clk 0:01:01.7]} 25... Qh4 {[%clk 0:00:38.8]} 26. Be3 {[%clk 0:00:44]} 26...
Rc8 {[%clk 0:00:21.5]} 27. h3 {[%clk 0:00:39.8]} 27... Kh7 {[%clk 0:00:19.4]}
28. Qb6 {[%clk 0:00:21.3]} 28... Qe7 {[%clk 0:00:16.5]} 29. Rf3 {[%clk
0:00:17.4]} 29... Kg8 {[%clk 0:00:16.3]} 30. Rg3 {[%clk 0:00:18.3]} 30... Kh7
{[%clk 0:00:17.1]} 31. Bd2 {[%clk 0:00:19.8]} 31... Qc7 {[%clk 0:00:14.2]} 32.
Qxc7 {[%clk 0:00:11]} 32... Rxc7 {[%clk 0:00:14.8]} 33. Bc3 {[%clk 0:00:08.7]}
33... Na7 {[%clk 0:00:15]} 34. Bb4 {[%clk 0:00:06.6]} 34... Rc2 {[%clk
0:00:13.9]} 35. Bf8 {[%clk 0:00:06.3]} 35... g6 {[%clk 0:00:14.4]} 36. Rb3
{[%clk 0:00:04.5]} 36... Nb5 {[%clk 0:00:14.9]} 37. Bc5 {[%clk 0:00:06.1]} 37...
Rc4 {[%clk 0:00:15.3]} 38. g3 {[%clk 0:00:05.1]} 38... h5 {[%clk 0:00:16]} 39.
h4 {[%clk 0:00:06]} 39... Ra4 {[%clk 0:00:16.6]} 40. Rf3 {[%clk 0:00:05.8]}
40... Kg8 {[%clk 0:00:16.8]} 41. b4 {[%clk 0:00:07.3]} 41... Ra1+ {[%clk
0:00:17.5]} 42. Kg2 {[%clk 0:00:07.9]} 42... Rc1 {[%clk 0:00:18.7]} 43. Rf4
{[%clk 0:00:08.7]} 43... Rc4 {[%clk 0:00:19.5]} 44. g4 {[%clk 0:00:09.6]} 44...
hxg4 {[%clk 0:00:19.7]} 45. Kg3 {[%clk 0:00:11]} 45... Kh7 {[%clk 0:00:21.3]}
46. Kxg4 {[%clk 0:00:11.9]} 46... Rc1 {[%clk 0:00:22.3]} 47. Rxf7+ {[%clk
0:00:12.6]} 47... Kg8 {[%clk 0:00:18.8]} 48. Rxb7 {[%clk 0:00:13.8]} 48... Nc3
{[%clk 0:00:18.7]} 49. f3 {[%clk 0:00:12.5]} 49... Ne2 {[%clk 0:00:18.5]} 50.
Kg5 {[%clk 0:00:12.7]} 50... Rg1+ {[%clk 0:00:19.3]} 51. Kf6 {[%clk 0:00:13.9]}
51... Nf4 {[%clk 0:00:19.4]} 52. b5 {[%clk 0:00:14]} 52... axb5 {[%clk
0:00:19.7]} 53. a6 {[%clk 0:00:15.9]} 53... Nh5+ {[%clk 0:00:17.3]} 54. Ke7
{[%clk 0:00:16]} 54... Nf4 {[%clk 0:00:19]} 55. a7 {[%clk 0:00:17.1]} 1-0

[Event "*** Titled Tuesday Blitz"]
[Site "Chess.com"]
[Date "2020.01.07"]
[Round "2"]
[White "DoHoChess"]
[Black "Arystanner"]
[Result "0-1"]
[WhiteElo "2527"]
[BlackElo "2742"]
[TimeControl "180+2"]
[EndTime "13:26:54 PST"]
[Termination "Arystanner won by resignation"]

1. Nf3 {[%clk 0:03:01.9]} 1... Nf6 {[%clk 0:03:00.9]} 2. c4 {[%clk 0:03:02.3]}
2... g6 {[%clk 0:03:02.8]} 3. Nc3 {[%clk 0:03:00.7]} 3... Bg7 {[%clk 0:03:04.3]}
4. e4 {[%clk 0:03:01.8]} 4... d6 {[%clk 0:03:05.6]} 5. d4 {[%clk 0:03:03.4]}
5... O-O {[%clk 0:03:06.8]} 6. Be2 {[%clk 0:03:05]} 6... e5 {[%clk 0:03:08]} 7.
O-O {[%clk 0:03:06.5]} 7... Nc6 {[%clk 0:03:09.3]} 8. dxe5 {[%clk 0:03:08]} 8...
dxe5 {[%clk 0:03:08.3]} 9. Bg5 {[%clk 0:03:08.6]} 9... Bg4 {[%clk 0:03:02.2]}
10. Qxd8 {[%clk 0:03:02.4]} 10... Nxd8 {[%clk 0:02:49.5]} 11. Bxf6 {[%clk
0:03:03.2]} 11... Bxf6 {[%clk 0:02:48.1]} 12. Nd5 {[%clk 0:03:04.5]} 12... Bg7
{[%clk 0:02:45.3]} 13. Nxc7 {[%clk 0:03:03.7]} 13... Rc8 {[%clk 0:02:45.7]} 14.
Nd5 {[%clk 0:03:04.9]} 14... Bxf3 {[%clk 0:02:47.1]} 15. Bxf3 {[%clk 0:02:42.5]}
15... Rxc4 {[%clk 0:02:44.3]} 16. Rac1 {[%clk 0:02:38.9]} 16... Rxc1 {[%clk
0:02:43.6]} 17. Rxc1 {[%clk 0:02:40.8]} 17... Nc6 {[%clk 0:02:45.3]} 18. b4
{[%clk 0:02:28.3]} 18... a6 {[%clk 0:02:43.1]} 19. a4 {[%clk 0:02:27.3]} 19...
Rd8 {[%clk 0:02:43.9]} 20. Be2 {[%clk 0:02:04.2]} 20... Nd4 {[%clk 0:02:15.3]}
21. Bf1 {[%clk 0:02:03.5]} 21... b5 {[%clk 0:02:14.1]} 22. axb5 {[%clk
0:01:56.8]} 22... axb5 {[%clk 0:02:16]} 23. g3 {[%clk 0:01:22.7]} 23... Bf8
{[%clk 0:02:13.2]} 24. Kg2 {[%clk 0:01:21.8]} 24... Ra8 {[%clk 0:02:08]} 25. Rc7
{[%clk 0:01:20.7]} 25... Ra2 {[%clk 0:01:58.3]} 26. Rb7 {[%clk 0:01:18.4]} 26...
Nc2 {[%clk 0:01:09]} 27. Bxb5 {[%clk 0:01:01.8]} 27... Nxb4 {[%clk 0:00:56.6]}
28. Bc4 {[%clk 0:01:01]} 28... Rb2 {[%clk 0:00:24]} 29. Nf6+ {[%clk 0:01:00.3]}
29... Kh8 {[%clk 0:00:25.5]} 30. Rxf7 {[%clk 0:00:44.8]} 30... Bg7 {[%clk
0:00:26.6]} 31. Ne8 {[%clk 0:00:37.1]} 31... Bh6 {[%clk 0:00:26.8]} 32. g4
{[%clk 0:00:38]} 32... Nc2 {[%clk 0:00:19.9]} 33. g5 {[%clk 0:00:36.7]} 33...
Ne3+ {[%clk 0:00:20.6]} 34. Kf3 {[%clk 0:00:38.3]} 34... Nxc4 {[%clk 0:00:21.5]}
35. gxh6 {[%clk 0:00:39.2]} 35... Kg8 {[%clk 0:00:20.1]} 36. Rc7 {[%clk
0:00:35.6]} 36... Nd2+ {[%clk 0:00:20.8]} 37. Ke3 {[%clk 0:00:31]} 37... Nf1+
{[%clk 0:00:21.2]} 38. Kd3 {[%clk 0:00:31.2]} 38... Rxf2 {[%clk 0:00:22.2]} 39.
Nd6 {[%clk 0:00:25.6]} 39... Rd2+ {[%clk 0:00:22.4]} 40. Kc4 {[%clk 0:00:23.5]}
40... Rxd6 {[%clk 0:00:24.3]} 41. Rg7+ {[%clk 0:00:25.1]} 41... Kf8 {[%clk
0:00:24.5]} 42. Rxh7 {[%clk 0:00:26.1]} 42... Rd2 {[%clk 0:00:23.2]} 43. h4
{[%clk 0:00:20.3]} 43... Rh2 {[%clk 0:00:23.9]} 44. Ra7 {[%clk 0:00:19.9]} 44...
Rxh4 {[%clk 0:00:24.5]} 45. h7 {[%clk 0:00:21.4]} 45... Ng3 {[%clk 0:00:23.7]}
46. Kd5 {[%clk 0:00:22.7]} 46... Nxe4 {[%clk 0:00:24.6]} 47. Kxe5 {[%clk
0:00:18.4]} 47... Ng5 {[%clk 0:00:18.9]} 48. h8=Q+ {[%clk 0:00:07]} 48... Rxh8
{[%clk 0:00:19.1]} 49. Ra8+ {[%clk 0:00:05.7]} 49... Kg7 {[%clk 0:00:20]} 50.
Rxh8 {[%clk 0:00:06.8]} 50... Nf7+ {[%clk 0:00:21.4]} 0-1